Body,Body Name,Date,TransNo,Amount � (Excl VAT),Supplier name,Description,Expense Area,Expense Type,Expense Code
http://opendatacommunities.org/id/london-borough-council/sutton,London Borough of Sutton,07/06/2021,10002748,10.33, MCDONALDS,MC ACTIVITY,Health and Wellbeing,Equipment And Materials Purchase,A40000
http://opendatacommunities.org/id/london-borough-council/sutton,London Borough of Sutton,15/06/2021,10002748,108.57, FACEBK ZWJGH5TAL2,FACEBOOK AD FOR VACCINE PROMOTION TO AFRICAN AND CARRIBEAN COMMUNITIES (27.14%),Health and Wellbeing,Publicity,A44266
http://opendatacommunities.org/id/london-borough-council/sutton,London Borough of Sutton,25/05/2021,10002748,24.91, AMZNMKTPLACE AMAZON.CO,EQUIPMENT AMAZON,Health and Wellbeing,Equipment And Materials Purchase,A40000
http://opendatacommunities.org/id/london-borough-council/sutton,London Borough of Sutton,23/06/2021,10002748,8.32, TWINKL LIMITED,TWINKL SUBSCRIPTION,Health and Wellbeing,Equipment And Materials Purchase,A40000
http://opendatacommunities.org/id/london-borough-council/sutton,London Borough of Sutton,15/06/2021,10002748,14.57, SAINSBURYS SACAT 2331,GROCERIES,Health and Wellbeing,Catering Equipment,A41005
http://opendatacommunities.org/id/london-borough-council/sutton,London Borough of Sutton,07/06/2021,10002748,100.62, W M MORRISONS.COM,GROCERIES,Health and Wellbeing,Provisions,A41006
http://opendatacommunities.org/id/london-borough-council/sutton,London Borough of Sutton,02/06/2021,10002748,8.42, LIDL GB LONDON,GROCERIES,Health and Wellbeing,Provisions,A41006
http://opendatacommunities.org/id/london-borough-council/sutton,London Borough of Sutton,01/06/2021,10002748,44.22, SAINSBURYS.CO.UK,GROCERIES,Health and Wellbeing,Provisions,A41006
http://opendatacommunities.org/id/london-borough-council/sutton,London Borough of Sutton,20/06/2021,10002748,51.14, W M MORRISONS.COM,GROCERIES,Health and Wellbeing,Provisions,A41006
http://opendatacommunities.org/id/london-borough-council/sutton,London Borough of Sutton,18/06/2021,10002748,158.75, B&Q DIRECT,GARDENING EQUIPMENT FOR WALLINGTON LIBRARY,Health and Wellbeing,Equipment And Materials Purchase,A40000
http://opendatacommunities.org/id/london-borough-council/sutton,London Borough of Sutton,11/06/2021,10002748,4.17, EB  REFUND TO BUYER,EVENTBRITE REFUND,Health and Wellbeing,Publicity,A44266
http://opendatacommunities.org/id/london-borough-council/sutton,London Borough of Sutton,22/06/2021,10002748,2.31, TRANSLATED.COM,TRANSLATION FOR RAPID TESTING POSTERS (IN CHILDCARE/EDUCATION SETTINGS),Health and Wellbeing,Publicity,A44266
http://opendatacommunities.org/id/london-borough-council/sutton,London Borough of Sutton,08/06/2021,10002748,99.95, BOOK NETWORK INTL LIMI,PURCHASE OF PDF VERSION KNOWLES ON LOCAL AUTHORITY MEETINGS 8TH EDITION,Resources,Equipment And Materials Purchase,A40000
http://opendatacommunities.org/id/london-borough-council/sutton,London Borough of Sutton,21/06/2021,10002748,83.88, TRANSLATED.COM,TRANSLATION FOR RAPID TESTING POSTERS (IN CHILDCARE/EDUCATION SETTINGS),Resources,Publicity,A44266
http://opendatacommunities.org/id/london-borough-council/sutton,London Borough of Sutton,03/06/2021,10002748,8.32, SPOTIFY UK,MUSIC FOR WEDDINGS,Resources,Subscriptions,A47010
http://opendatacommunities.org/id/london-borough-council/sutton,London Borough of Sutton,01/06/2021,10002748,40, WWW.ICO.ORG.UK,REGISTRATION WITH ICO,Resources,Subscriptions,A47010
http://opendatacommunities.org/id/london-borough-council/sutton,London Borough of Sutton,13/06/2021,10002748,18.33, B & Q 1191,HANGING BASKETS,Resources,Miscellaneous Expenses,A49000
http://opendatacommunities.org/id/london-borough-council/sutton,London Borough of Sutton,01/06/2021,10002748,240, WWW.LOCAL.GOV.UK,REFUND LGA CONFERENCE 6-8 JULY 2021,Resources,Conference Expenses,A43075
http://opendatacommunities.org/id/london-borough-council/sutton,London Borough of Sutton,01/06/2021,10002748,-240, WWW.LOCAL.GOV.UK,REFUND FOR LGA CONFERENCE BOOKING 6-8 JULY 2021,Resources,Conference Expenses,A43075
http://opendatacommunities.org/id/london-borough-council/sutton,London Borough of Sutton,07/05/2021,10002748,-240, WWW.LOCAL.GOV.UK,REFUND OF LGA CONFERENCE 6-8 JULY 2021,Resources,Conference Expenses,A43075
http://opendatacommunities.org/id/london-borough-council/sutton,London Borough of Sutton,15/06/2021,10002748,7.49, MAILCHIMP    MONTHLY,WEB HOSTING,Resources,IT Software Purchase,A45040
http://opendatacommunities.org/id/london-borough-council/sutton,London Borough of Sutton,14/06/2021,10002748,272.24, MAILCHIMP    MONTHLY,WEB HOSTING,Resources,IT Software Purchase,A45040
http://opendatacommunities.org/id/london-borough-council/sutton,London Borough of Sutton,05/06/2021,10002748,10.95, AMZNMKTPLACE,"SPLIT - UMITIVE MOUSE PAD WITH WRIST SUPPORT AND KEYBOARD WRIST REST PAD, ERGONOMIC MOUSE MAT WITH MEMORY FOAM WRIST SUPPORT, RUBBER BASE NON SLIP FOR COMPUTE (32.26%)",Resources,Equipment And Materials Purchase,A40000
http://opendatacommunities.org/id/london-borough-council/sutton,London Borough of Sutton,05/06/2021,10002748,26.32, AMZNMKTPLACE,"SPLIT - WANTEK USB HEADSET WITH MICROPHONE NOISE CANCELLING AND IN-LINE CONTROLS, PC HEADPHONE FOR SKYPE SOFTPHONE UC BUSINESS CALL CENTER, CRYSTAL CLEAR CHAT (77.55%)",Resources,Equipment And Materials Purchase,A40000
http://opendatacommunities.org/id/london-borough-council/sutton,London Borough of Sutton,05/06/2021,10002748,-3.33, AMZNMKTPLACE,BALANCING ENTRY AMOUNT (-29.43%),Resources,Equipment And Materials Purchase,A40000
http://opendatacommunities.org/id/london-borough-council/sutton,London Borough of Sutton,10/06/2021,10002748,833.33, CS MORRISONS GIFT CARD,VOUCHERS PURCHASED FOR LONDON BOROUGH OF SUTTON CLIENTS,Resources,Miscellaneous Expenses,A49000
http://opendatacommunities.org/id/london-borough-council/sutton,London Borough of Sutton,15/06/2021,10002748,195.75, CARTRIDGEPEOPLE.COM,TONER CARTRIDGES FOR CLLR BUTT,Resources,Stationery,A43015
http://opendatacommunities.org/id/london-borough-council/sutton,London Borough of Sutton,21/06/2021,10002748,197.27, MAILCHIMP,MAILCHIMP SUBSCRIPTION,Resources,Publicity,A44266
http://opendatacommunities.org/id/london-borough-council/sutton,London Borough of Sutton,21/06/2021,10002748,0.92, MAILCHIMP,MAILCHIMP SUBSCRIPTION,Resources,Publicity,A44266
http://opendatacommunities.org/id/london-borough-council/sutton,London Borough of Sutton,19/06/2021,10002748,27.8, CANVA  03091-7555073,DESIGN SUBSCRIPTION FOR TEAM,Resources,Publicity,A44266
http://opendatacommunities.org/id/london-borough-council/sutton,London Borough of Sutton,13/06/2021,10002748,167.77, 123 REG LTD,RENEWAL FOR INNOVATE WEBSITE DOMAIN,Resources,Publicity,A44266
http://opendatacommunities.org/id/london-borough-council/sutton,London Borough of Sutton,23/06/2021,10002748,81.35, FACEBK CN8DJ57AL2,VARAIOUS FACEBOOK ADS FOR PROJECTS,Resources,Publicity,A44266
http://opendatacommunities.org/id/london-borough-council/sutton,London Borough of Sutton,15/06/2021,10002748,291.43, FACEBK ZWJGH5TAL2,SPLIT - FACEBOOK ADS FOR EU SETTLEMENT SCHEME AND RESTART GRANT (72.86%),Resources,Publicity,A44266
http://opendatacommunities.org/id/london-borough-council/sutton,London Borough of Sutton,13/06/2021,10002748,27.69, AMZNMKTPLACE AMAZON.CO,SD CARD FOR TIME LAPSE CAMERA AND MOBILE PHONE TRIPOD ADAPTER,Resources,Publicity,A44266
http://opendatacommunities.org/id/london-borough-council/sutton,London Borough of Sutton,14/06/2021,10002748,486.94, ARGOS LTD,CL&G,Resources,"Grants, Contributions & Donations",A47005
http://opendatacommunities.org/id/london-borough-council/sutton,London Borough of Sutton,14/06/2021,10002748,179.99, ARGOS LTD,CL&G,Resources,"Grants, Contributions & Donations",A47005
http://opendatacommunities.org/id/london-borough-council/sutton,London Borough of Sutton,11/06/2021,10002748,209.99, ARGOS LTD,CL&G,Resources,"Grants, Contributions & Donations",A47005
http://opendatacommunities.org/id/london-borough-council/sutton,London Borough of Sutton,11/06/2021,10002748,706.93, ARGOS LTD,CL&G,Resources,"Grants, Contributions & Donations",A47005
http://opendatacommunities.org/id/london-borough-council/sutton,London Borough of Sutton,10/06/2021,10002748,274, CURRYS ONLINE,CL&G,Resources,"Grants, Contributions & Donations",A47005
http://opendatacommunities.org/id/london-borough-council/sutton,London Borough of Sutton,09/06/2021,10002748,173.95, ARGOS LTD,CL&G,Resources,"Grants, Contributions & Donations",A47005
http://opendatacommunities.org/id/london-borough-council/sutton,London Borough of Sutton,09/06/2021,10002748,533.99, CURRYS ONLINE,CL&G,Resources,"Grants, Contributions & Donations",A47005
http://opendatacommunities.org/id/london-borough-council/sutton,London Borough of Sutton,09/06/2021,10002748,533.99, CURRYS ONLINE,CL&G,Resources,"Grants, Contributions & Donations",A47005
http://opendatacommunities.org/id/london-borough-council/sutton,London Borough of Sutton,09/06/2021,10002748,304, CURRYS ONLINE,CL&G,Resources,"Grants, Contributions & Donations",A47005
http://opendatacommunities.org/id/london-borough-council/sutton,London Borough of Sutton,09/06/2021,10002748,432.95, ARGOS LTD,CL&G,Resources,"Grants, Contributions & Donations",A47005
http://opendatacommunities.org/id/london-borough-council/sutton,London Borough of Sutton,09/06/2021,10002748,-264.99, ARGOS LTD,CL&G,Resources,"Grants, Contributions & Donations",A47005
http://opendatacommunities.org/id/london-borough-council/sutton,London Borough of Sutton,08/06/2021,10002748,304, CURRYS ONLINE,CL&G,Resources,"Grants, Contributions & Donations",A47005
http://opendatacommunities.org/id/london-borough-council/sutton,London Borough of Sutton,08/06/2021,10002748,304, CURRYS ONLINE,CL&G,Resources,"Grants, Contributions & Donations",A47005
http://opendatacommunities.org/id/london-borough-council/sutton,London Borough of Sutton,08/06/2021,10002748,140, ARGOS LTD,CL&G,Resources,"Grants, Contributions & Donations",A47005
http://opendatacommunities.org/id/london-borough-council/sutton,London Borough of Sutton,08/06/2021,10002748,386.95, ARGOS LTD,CL&G,Resources,"Grants, Contributions & Donations",A47005
http://opendatacommunities.org/id/london-borough-council/sutton,London Borough of Sutton,08/06/2021,10002748,-304, CURRYS ONLINE,CL&G,Resources,"Grants, Contributions & Donations",A47005
http://opendatacommunities.org/id/london-borough-council/sutton,London Borough of Sutton,07/06/2021,10002748,423.95, ARGOS LTD,CL&G,Resources,"Grants, Contributions & Donations",A47005
http://opendatacommunities.org/id/london-borough-council/sutton,London Borough of Sutton,07/06/2021,10002748,286.95, ARGOS LTD,CL&G,Resources,"Grants, Contributions & Donations",A47005
http://opendatacommunities.org/id/london-borough-council/sutton,London Borough of Sutton,07/06/2021,10002748,319, CURRYS ONLINE,CL&G,Resources,"Grants, Contributions & Donations",A47005
http://opendatacommunities.org/id/london-borough-council/sutton,London Borough of Sutton,07/06/2021,10002748,706.94, ARGOS LTD,CL&G,Resources,"Grants, Contributions & Donations",A47005
http://opendatacommunities.org/id/london-borough-council/sutton,London Borough of Sutton,07/06/2021,10002748,-319, CURRYS ONLINE,CL&G,Resources,"Grants, Contributions & Donations",A47005
http://opendatacommunities.org/id/london-borough-council/sutton,London Borough of Sutton,04/06/2021,10002748,464.98, ARGOS LTD,CL&G,Resources,"Grants, Contributions & Donations",A47005
http://opendatacommunities.org/id/london-borough-council/sutton,London Borough of Sutton,04/06/2021,10002748,453.95, ARGOS LTD,CL&G,Resources,"Grants, Contributions & Donations",A47005
http://opendatacommunities.org/id/london-borough-council/sutton,London Borough of Sutton,02/06/2021,10002748,163.95, ARGOS LTD,CL&G,Resources,"Grants, Contributions & Donations",A47005
http://opendatacommunities.org/id/london-borough-council/sutton,London Borough of Sutton,02/06/2021,10002748,479.98, ARGOS LTD,CL&G,Resources,"Grants, Contributions & Donations",A47005
http://opendatacommunities.org/id/london-borough-council/sutton,London Borough of Sutton,01/06/2021,10002748,239.99, ARGOS LTD,CL&G,Resources,"Grants, Contributions & Donations",A47005
http://opendatacommunities.org/id/london-borough-council/sutton,London Borough of Sutton,01/06/2021,10002748,286.95, ARGOS LTD,CL&G,Resources,"Grants, Contributions & Donations",A47005
http://opendatacommunities.org/id/london-borough-council/sutton,London Borough of Sutton,01/06/2021,10002748,199.99, ARGOS LTD,CL&G,Resources,"Grants, Contributions & Donations",A47005
http://opendatacommunities.org/id/london-borough-council/sutton,London Borough of Sutton,27/05/2021,10002748,103.95, ARGOS LTD,CL&G,Resources,"Grants, Contributions & Donations",A47005
http://opendatacommunities.org/id/london-borough-council/sutton,London Borough of Sutton,27/05/2021,10002748,459.98, ARGOS LTD,CL&G,Resources,"Grants, Contributions & Donations",A47005
http://opendatacommunities.org/id/london-borough-council/sutton,London Borough of Sutton,27/05/2021,10002748,-95, ARGOS LTD,CL&G,Resources,"Grants, Contributions & Donations",A47005
http://opendatacommunities.org/id/london-borough-council/sutton,London Borough of Sutton,27/05/2021,10002748,488.95, ARGOS LTD,CL&G,Resources,"Grants, Contributions & Donations",A47005
http://opendatacommunities.org/id/london-borough-council/sutton,London Borough of Sutton,25/06/2021,10002748,314, CURRYS ONLINE,CL&G,Resources,"Grants, Contributions & Donations",A47005
http://opendatacommunities.org/id/london-borough-council/sutton,London Borough of Sutton,25/06/2021,10002748,233.95, ARGOS LTD,CL&G,Resources,"Grants, Contributions & Donations",A47005
http://opendatacommunities.org/id/london-borough-council/sutton,London Borough of Sutton,25/06/2021,10002748,553.99, CURRYS ONLINE,CL&G,Resources,"Grants, Contributions & Donations",A47005
http://opendatacommunities.org/id/london-borough-council/sutton,London Borough of Sutton,25/06/2021,10002748,239.99, ARGOS LTD,CL&G,Resources,"Grants, Contributions & Donations",A47005
http://opendatacommunities.org/id/london-borough-council/sutton,London Borough of Sutton,25/06/2021,10002748,-6.95, ARGOS LTD,CL&G,Resources,"Grants, Contributions & Donations",A47005
http://opendatacommunities.org/id/london-borough-council/sutton,London Borough of Sutton,24/06/2021,10002748,761.93, ARGOS LTD,CL&G,Resources,"Grants, Contributions & Donations",A47005
http://opendatacommunities.org/id/london-borough-council/sutton,London Borough of Sutton,24/06/2021,10002748,363.95, ARGOS LTD,CL&G,Resources,"Grants, Contributions & Donations",A47005
http://opendatacommunities.org/id/london-borough-council/sutton,London Borough of Sutton,23/06/2021,10002748,309.98, ARGOS LTD,CL&G,Resources,"Grants, Contributions & Donations",A47005
http://opendatacommunities.org/id/london-borough-council/sutton,London Borough of Sutton,22/06/2021,10002748,286.95, ARGOS LTD,CL&G,Resources,"Grants, Contributions & Donations",A47005
http://opendatacommunities.org/id/london-borough-council/sutton,London Borough of Sutton,22/06/2021,10002748,286.95, ARGOS LTD,CL&G,Resources,"Grants, Contributions & Donations",A47005
http://opendatacommunities.org/id/london-borough-council/sutton,London Borough of Sutton,17/06/2021,10002748,-169.99, ARGOS LTD,CL&G,Resources,"Grants, Contributions & Donations",A47005
http://opendatacommunities.org/id/london-borough-council/sutton,London Borough of Sutton,16/06/2021,10002748,123.95, ARGOS LTD,CL&G,Resources,"Grants, Contributions & Donations",A47005
http://opendatacommunities.org/id/london-borough-council/sutton,London Borough of Sutton,06/06/2021,10002748,18.74, SUPERDRUG STORES PLC,PURCHASE OF FACE MASKS FOR STAFF ATTENDING VIRTUAL COURT HEARINGS,Resources,Health & Safety Equipment,A40080
http://opendatacommunities.org/id/london-borough-council/sutton,London Borough of Sutton,16/06/2021,10002748,167.27, POSTURITE LTD,PURCHASE OF 3 LAPTOP TROLLEYS,Resources,Miscellaneous Expenses,A49000
http://opendatacommunities.org/id/london-borough-council/sutton,London Borough of Sutton,15/06/2021,10002748,1.5, WWW.GOV.UK,PROBATE/WILL,Resources,Legal Services,A44025
http://opendatacommunities.org/id/london-borough-council/sutton,London Borough of Sutton,15/06/2021,10002748,1.5, WWW.GOV.UK,PROBATE/WILL,Resources,Legal Services,A44025
http://opendatacommunities.org/id/london-borough-council/sutton,London Borough of Sutton,11/06/2021,10002748,14, GEN REGISTER OFFICE,DEATH CERTIFICATE ORDER,Resources,Legal Services,A44025
http://opendatacommunities.org/id/london-borough-council/sutton,London Borough of Sutton,01/06/2021,10002748,1.5, WWW.GOV.UK,PROBATE/WILL,Resources,Legal Services,A44025
http://opendatacommunities.org/id/london-borough-council/sutton,London Borough of Sutton,22/06/2021,10002748,6.5, WALLINGTON CARS AND CO,TAXI ON 22.06.21 FROM LONDON CANCER HUB BACK TO CIVIC OFFICES,Development Growth and Regeneration,Equipment And Materials Purchase,A40000
http://opendatacommunities.org/id/london-borough-council/sutton,London Borough of Sutton,24/06/2021,10002748,190, POST OFFICE COUNTER,SIA CCTV LICENCE RENEWAL - ESSENTIAL BUSINESS NEED,Environment Housing and Neighbourhoods,Subscriptions,A47010
http://opendatacommunities.org/id/london-borough-council/sutton,London Borough of Sutton,01/06/2021,10002748,126.67, TEAM SPORT KARTING, TEAM SPORT MITCHAM TICKETS FOR CLIENT (YOUNG PERSON),Peoples Services,Equipment And Materials Purchase,A40000
http://opendatacommunities.org/id/london-borough-council/sutton,London Borough of Sutton,03/06/2021,10002748,8.67, CAFFE NERO WALLINGTON,RM ACTIVITY,Peoples Services,Equipment And Materials Purchase,A40000
http://opendatacommunities.org/id/london-borough-council/sutton,London Borough of Sutton,08/06/2021,10002748,374.97, SCREWFIX DIRECT,EQUIPMENT REQUIRED FOR YOUNG PERSON,Peoples Services,Equipment And Materials Purchase,A40000
http://opendatacommunities.org/id/london-borough-council/sutton,London Borough of Sutton,03/06/2021,10002748,5.15, PRICE BUSTERS,RM,Peoples Services,Equipment And Materials Purchase,A40000
http://opendatacommunities.org/id/london-borough-council/sutton,London Borough of Sutton,26/06/2021,10002748,12.55, SAINSBURYS SACAT 2006,JD,Peoples Services,Equipment And Materials Purchase,A40000
http://opendatacommunities.org/id/london-borough-council/sutton,London Borough of Sutton,25/06/2021,10002748,26.5, POUNDLAND,MC,Peoples Services,Equipment And Materials Purchase,A40000
http://opendatacommunities.org/id/london-borough-council/sutton,London Borough of Sutton,25/06/2021,10002748,6.01, MCDONALDS,MC ACT,Peoples Services,Equipment And Materials Purchase,A40000
http://opendatacommunities.org/id/london-borough-council/sutton,London Borough of Sutton,21/06/2021,10002748,14.2, PPOINT_ D.A.R MINI MAR,DR,Peoples Services,Equipment And Materials Purchase,A40000
http://opendatacommunities.org/id/london-borough-council/sutton,London Borough of Sutton,21/06/2021,10002748,9.35, MANOR PHARMACY,RM,Peoples Services,Equipment And Materials Purchase,A40000
http://opendatacommunities.org/id/london-borough-council/sutton,London Borough of Sutton,20/06/2021,10002748,62.09, SAINSBURYS 2006,MC AND AO,Peoples Services,Equipment And Materials Purchase,A40000
http://opendatacommunities.org/id/london-borough-council/sutton,London Borough of Sutton,18/06/2021,10002748,9.23, ASDA SUPERSTORE,DR,Peoples Services,Equipment And Materials Purchase,A40000
http://opendatacommunities.org/id/london-borough-council/sutton,London Borough of Sutton,17/06/2021,10002748,7.15, COSTA COFFEE 43047125,RM ACTIVITY,Peoples Services,Equipment And Materials Purchase,A40000
http://opendatacommunities.org/id/london-borough-council/sutton,London Borough of Sutton,17/06/2021,10002748,8.99, WH SMITH,RM,Peoples Services,Equipment And Materials Purchase,A40000
http://opendatacommunities.org/id/london-borough-council/sutton,London Borough of Sutton,16/06/2021,10002748,11, LBS REGISTRARS,CP,Peoples Services,Equipment And Materials Purchase,A40000
http://opendatacommunities.org/id/london-borough-council/sutton,London Borough of Sutton,16/06/2021,10002748,280, BRITISH HEART FOUNDATI,SH SET UP,Peoples Services,Equipment And Materials Purchase,A40000
http://opendatacommunities.org/id/london-borough-council/sutton,London Borough of Sutton,16/06/2021,10002748,-7.99, WWW.SUTTONS-SEEDS.,REFUND ON PREV-GNR,Peoples Services,Equipment And Materials Purchase,A40000
http://opendatacommunities.org/id/london-borough-council/sutton,London Borough of Sutton,15/06/2021,10002748,5.99, H E MATTHEWS PHARMACY,RM CHEMIST,Peoples Services,Equipment And Materials Purchase,A40000
http://opendatacommunities.org/id/london-borough-council/sutton,London Borough of Sutton,13/06/2021,10002748,7.11, MCDONALDS,RM ACTIVITY,Peoples Services,Equipment And Materials Purchase,A40000
http://opendatacommunities.org/id/london-borough-council/sutton,London Borough of Sutton,13/06/2021,10002748,13.5, POUNDLAND,MC,Peoples Services,Equipment And Materials Purchase,A40000
http://opendatacommunities.org/id/london-borough-council/sutton,London Borough of Sutton,13/06/2021,10002748,12.5, PRIMARK,MC,Peoples Services,Equipment And Materials Purchase,A40000
http://opendatacommunities.org/id/london-borough-council/sutton,London Borough of Sutton,12/06/2021,10002748,159, ARGOS LTD,MC,Peoples Services,Equipment And Materials Purchase,A40000
http://opendatacommunities.org/id/london-borough-council/sutton,London Borough of Sutton,09/06/2021,10002748,937.98, SUTTONAPPLI,AO SET UP,Peoples Services,Equipment And Materials Purchase,A40000
http://opendatacommunities.org/id/london-borough-council/sutton,London Borough of Sutton,09/06/2021,10002748,5.5, COX PIPPIN CAFE,RA ACTIVITY,Peoples Services,Equipment And Materials Purchase,A40000
http://opendatacommunities.org/id/london-borough-council/sutton,London Borough of Sutton,08/06/2021,10002748,81, KINGSMEAD EQUESTRIAN C,MC HORSE,Peoples Services,Equipment And Materials Purchase,A40000
http://opendatacommunities.org/id/london-borough-council/sutton,London Borough of Sutton,08/06/2021,10002748,30, WWW.UTILITA.CO.UK,MC GAS ELEC,Peoples Services,Equipment And Materials Purchase,A40000
http://opendatacommunities.org/id/london-borough-council/sutton,London Borough of Sutton,07/06/2021,10002748,37.67, W M MORRISON STORE,MC GROCERIES,Peoples Services,Equipment And Materials Purchase,A40000
http://opendatacommunities.org/id/london-borough-council/sutton,London Borough of Sutton,07/06/2021,10002748,22.88, PETS AT HOME LTD,MC,Peoples Services,Equipment And Materials Purchase,A40000
http://opendatacommunities.org/id/london-borough-council/sutton,London Borough of Sutton,30/05/2021,10002748,159.9, ZOOM.US 888-799-9666,ZOOM SUBSCRIPTION FOR LEAVING CARE TEAM,Peoples Services,Subscriptions,A47010
http://opendatacommunities.org/id/london-borough-council/sutton,London Borough of Sutton,26/05/2021,10002748,52, MR MULLIGANS BASILDON,FUNFAIR TICKETS X 4,Peoples Services,Miscellaneous Expenses,A49000
http://opendatacommunities.org/id/london-borough-council/sutton,London Borough of Sutton,16/06/2021,10002748,14, GEN REGISTER OFFICE,BIRTH CERTIFICATE ORDERED FOR SOCIAL WORKER FROM THE LEAVING CARE TEAM.,Peoples Services,Miscellaneous Expenses,A49000
http://opendatacommunities.org/id/london-borough-council/sutton,London Borough of Sutton,09/06/2021,10002748,374.98, CURRYS ONLINE,ITEMS REQUIRED FOR YOUNG PERSON,Peoples Services,C.C.A Travel & Subsistance,A61010
http://opendatacommunities.org/id/london-borough-council/sutton,London Borough of Sutton,22/06/2021,10002748,75, 2MAA026317451 TD E-PMT,VISA APPLICATION,Peoples Services,C.C.A Travel & Subsistance,A61010
http://opendatacommunities.org/id/london-borough-council/sutton,London Borough of Sutton,04/06/2021,10002748,143.33, MINICABIT,MINI CAB BOOKING,Peoples Services,C.C.A Travel & Subsistance,A61010
http://opendatacommunities.org/id/london-borough-council/sutton,London Borough of Sutton,01/06/2021,10002748,25.79, ARGOS LTD,ARGOS ITEMS FOR THE LEAVING CARE SERVICES,Peoples Services,C.C.A Travel & Subsistance,A61010
http://opendatacommunities.org/id/london-borough-council/sutton,London Borough of Sutton,09/06/2021,10002748,124.12, ARGOS LTD,TRAVEL FOR YOUNG PERSON,Peoples Services,C.C.A Travel & Subsistance,A61010
http://opendatacommunities.org/id/london-borough-council/sutton,London Borough of Sutton,09/06/2021,10002748,108.32, WF  WAYFAIR3590166114,ITEMS REQUIRED FOR A YOUNG PERSON,Peoples Services,Client Care/Assistance,A61011
http://opendatacommunities.org/id/london-borough-council/sutton,London Borough of Sutton,18/06/2021,10002748,194.22, GENERATION FLOORING,ONLINE CARPETS.CO.UK,Peoples Services,Set Up Costs - Children Leaving Care,A61021
http://opendatacommunities.org/id/london-borough-council/sutton,London Borough of Sutton,21/06/2021,10002748,329, AO RETAIL LIMITED,AO COOKER PURCHASED FOR CLIENT FROM THE LEAVING CARE TEAM.,Peoples Services,Set Up Costs - Children Leaving Care,A61021
http://opendatacommunities.org/id/london-borough-council/sutton,London Borough of Sutton,18/06/2021,10002748,178.33, AO RETAIL LIMITED,APPLIANCE,Peoples Services,Set Up Costs - Children Leaving Care,A61021
http://opendatacommunities.org/id/london-borough-council/sutton,London Borough of Sutton,22/06/2021,10002748,769.97, ARGOS LTD,ARGOS COOKER WMACHINE FRIDGE PURCHASED FOR THE LEAVING CARE TEAM.,Peoples Services,Set Up Costs - Children Leaving Care,A61021
http://opendatacommunities.org/id/london-borough-council/sutton,London Borough of Sutton,22/06/2021,10002748,548.99, SUTTONAPPLI,SUTTON APPLIANCES PURCHASE FOR THE LEAVING CARE TEAM.,Peoples Services,Set Up Costs - Children Leaving Care,A61021
http://opendatacommunities.org/id/london-borough-council/sutton,London Borough of Sutton,22/06/2021,10002748,222.95, ARGOS LTD,ARGOS WARDROBE SET PURCHASED FOR THE LEAVING CARE TEAM.,Peoples Services,Set Up Costs - Children Leaving Care,A61021
http://opendatacommunities.org/id/london-borough-council/sutton,London Borough of Sutton,27/06/2021,10002748,-48.79, AMZ AMAZON.CO.UK,"SPLIT - COMFEE' AIR FRYER WITH 4.2L DETACHABLE BASKET, HEALTHY OIL FREE COOKING, BAKING AND GRILLING WITH RAPID AIR CIRCULATION, ADJUSTABLE TEMPERATURE CONTRO (111.42%)",Peoples Services,Set Up Costs - Children Leaving Care,A61021
http://opendatacommunities.org/id/london-borough-council/sutton,London Borough of Sutton,27/06/2021,10002748,5, AMZ AMAZON.CO.UK,BALANCING ENTRY AMOUNT (-34.26%),Peoples Services,Set Up Costs - Children Leaving Care,A61021
http://opendatacommunities.org/id/london-borough-council/sutton,London Borough of Sutton,24/06/2021,10002748,30.64, PAYPAL  NETCURTAINS,DL SET UP,Peoples Services,Set Up Costs - Children Leaving Care,A61021
http://opendatacommunities.org/id/london-borough-council/sutton,London Borough of Sutton,24/06/2021,10002748,17.38, PAYPAL  NETCURTAINS,DL SET UP,Peoples Services,Set Up Costs - Children Leaving Care,A61021
http://opendatacommunities.org/id/london-borough-council/sutton,London Borough of Sutton,21/06/2021,10002748,15, W M MORRISON STORE,JD,Peoples Services,Set Up Costs - Children Leaving Care,A61021
http://opendatacommunities.org/id/london-borough-council/sutton,London Borough of Sutton,24/06/2021,10002748,199.99, AMZNMKTPLACE AMAZON.CO,SPLIT - THE COMFORT NIGHT SLEEP MAGIC ORTHO FULL DIVAN BED SET CRUSH VELVET BASE WITH ORTHOPEADIC MATTRESS AND MACHING HEADBOARD 2 FREE DRAWERS (4FT SMALL DOU (83.33%),Peoples Services,Set Up Costs - Children Leaving Care,A61021
http://opendatacommunities.org/id/london-borough-council/sutton,London Borough of Sutton,24/06/2021,10002748,40, AMZNMKTPLACE AMAZON.CO,BALANCING ENTRY AMOUNT (16.67%),Peoples Services,Set Up Costs - Children Leaving Care,A61021
http://opendatacommunities.org/id/london-borough-council/sutton,London Borough of Sutton,26/05/2021,10002748,70.95, ARGOS LTD,ARGOS,Peoples Services,Set Up Costs - Children Leaving Care,A61021
http://opendatacommunities.org/id/london-borough-council/sutton,London Borough of Sutton,04/06/2021,10002748,314, CURRYS ONLINE,GAS COOKER CURRYS,Peoples Services,Set Up Costs - Children Leaving Care,A61021
http://opendatacommunities.org/id/london-borough-council/sutton,London Borough of Sutton,04/06/2021,10002748,15, ARGOS LTD,LAMPS ARGOS,Peoples Services,Set Up Costs - Children Leaving Care,A61021
http://opendatacommunities.org/id/london-borough-council/sutton,London Borough of Sutton,03/06/2021,10002748,476.52, WFW WFLOORING,WOOD HOUSE FLOORING,Peoples Services,Set Up Costs - Children Leaving Care,A61021
http://opendatacommunities.org/id/london-borough-council/sutton,London Borough of Sutton,07/06/2021,10002748,133.32, AMZNMKTPLACE AMAZON.CO,"SPLIT - HOME TREATS CRUSHED VELVET BED FRAME. EMBOSSED WITH DIAMANTE JEWELS, UPHOLSTERED (NO MATTRESS, KING) (100%)",Peoples Services,Set Up Costs - Children Leaving Care,A61021
http://opendatacommunities.org/id/london-borough-council/sutton,London Borough of Sutton,07/06/2021,10002748,79.16, AMZNMKTPLACE AMAZON.CO,"SPLIT - SLEEP FACTORY LIMITED COOL WAVE MEMORY FOAM OPEN COIL SPRING MATTRESS, MICRO QUILTED MEDIUM TENSION WITH MEMORY FOAM LAYER - 5FT KING SIZE (150CM X 20 (100%)",Peoples Services,Set Up Costs - Children Leaving Care,A61021
http://opendatacommunities.org/id/london-borough-council/sutton,London Borough of Sutton,04/06/2021,10002748,406.94, ARGOS LTD,FRIDGE FREEZER AND WARDROBE ARGOS,Peoples Services,Set Up Costs - Children Leaving Care,A61021
http://opendatacommunities.org/id/london-borough-council/sutton,London Borough of Sutton,27/05/2021,10002748,26.91, AMZNMKTPLACE,"SPLIT - VELAZE STAINLESS STEEL COOKWARE POT & PAN SETS, SERIES DYLAN, 7-PIECE SAUCEPAN SET INDUCTION SUITABLE SET OF 7 (100%)",Peoples Services,Set Up Costs - Children Leaving Care,A61021
http://opendatacommunities.org/id/london-borough-council/sutton,London Borough of Sutton,27/05/2021,10002748,8.74, AMZNMKTPLACE,"SPLIT - SRS RUGS� BARRIER MAT INDOOR HEAVY DUTY WASHABLE ABSORBENT ENTRYWAY DOOR MAT RUNNER WITH NON-SLIP PVC BACKING. 20 SIZES. 5 COLOURS (GREY, 40CM X 60CM (100%)",Peoples Services,Set Up Costs - Children Leaving Care,A61021
http://opendatacommunities.org/id/london-borough-council/sutton,London Borough of Sutton,27/05/2021,10002748,82.98, AMZNMKTPLACE,"SPLIT - COMFEE' AIR FRYER WITH 4.2L DETACHABLE BASKET, HEALTHY OIL FREE COOKING, BAKING AND GRILLING WITH RAPID AIR CIRCULATION, ADJUSTABLE TEMPERATURE CONTRO (98.37%)",Peoples Services,Set Up Costs - Children Leaving Care,A61021
http://opendatacommunities.org/id/london-borough-council/sutton,London Borough of Sutton,27/05/2021,10002748,1.66, AMZNMKTPLACE,BALANCING ENTRY AMOUNT (1.63%),Peoples Services,Set Up Costs - Children Leaving Care,A61021
http://opendatacommunities.org/id/london-borough-council/sutton,London Borough of Sutton,03/06/2021,10002748,-98.87, LAKESIDE KARTING,LAKESIDE GO KART TICKETS LCS SUPPORT,Peoples Services,Miscellaneous Expenses,A49000
http://opendatacommunities.org/id/london-borough-council/sutton,London Borough of Sutton,19/06/2021,10002748,130, HEATH COTTAGE HOTEL,HEATH COTTAGE HOTEL FOR CLIENT WITHIN LCS SUPPORT TEAM.,Peoples Services,Approved Lodgings,A61000
http://opendatacommunities.org/id/london-borough-council/sutton,London Borough of Sutton,09/06/2021,10002748,76.12, HOTEL AT BOOKING.COM,HOTEL REQUIRED FOR A VISIT,Peoples Services,C.C.A Travel & Subsistance,A61010
http://opendatacommunities.org/id/london-borough-council/sutton,London Borough of Sutton,23/06/2021,10002748,92.68, HOTEL AT BOOKING.COM,HOTEL BOOKING FOR LCS SUPPORT TEAM.,Peoples Services,Client Care/Assistance,A61011
http://opendatacommunities.org/id/london-borough-council/sutton,London Borough of Sutton,27/05/2021,10002748,175, HOTEL ON BOOKING.COM,THE LION HOTEL BOOKING,Peoples Services,Client Care/Assistance,A61011
http://opendatacommunities.org/id/london-borough-council/sutton,London Borough of Sutton,04/06/2021,10002748,12.95, AMZNMKTPLACE,SPLIT - ASHLEY MILLS SOFT LUXURY FAUX VELVET FUR MINK THROW OVER SOFA BED BLANKET SILVER SMOKE GREY DOUBLE 150X200CMS (100%),Peoples Services,Client Care/Assistance,A61011
http://opendatacommunities.org/id/london-borough-council/sutton,London Borough of Sutton,04/06/2021,10002748,38.95, ARGOS LTD,GUITAR ARGOS,Peoples Services,Client Care/Assistance,A61011
http://opendatacommunities.org/id/london-borough-council/sutton,London Borough of Sutton,20/06/2021,10002748,99.99, MUSIC MAGPIE,MUSIC MAGPIE PURCHASE FOR ASYLUM SEEKERS TEAM.,Peoples Services,Miscellaneous Expenses,A49000
http://opendatacommunities.org/id/london-borough-council/sutton,London Borough of Sutton,27/05/2021,10002748,7.07, AMZNMKTPLACE,"SPLIT - LIFEWIT 82L LARGE LAUNDRY HAMPER COLLAPSIBLE CLOTHES BASKET DURABLE OXFORD FABRIC PORTABLE FOLDING WASHING BIN, 38CM  64CM, GREY (31.63%)",Peoples Services,Domestic Supplies,A27021
http://opendatacommunities.org/id/london-borough-council/sutton,London Borough of Sutton,27/05/2021,10002748,2.48, AMZNMKTPLACE,BALANCING ENTRY AMOUNT (9.06%),Peoples Services,Domestic Supplies,A27021
http://opendatacommunities.org/id/london-borough-council/sutton,London Borough of Sutton,27/05/2021,10002748,13.24, AMZNMKTPLACE,SPLIT - INVERO 4 WAY GANG POWER MAINS EXTENSION LEAD CABLE 1M METRE BRITISH APPROVED 13A AMPS - WHITE (59.31%),Peoples Services,Domestic Supplies,A27021
http://opendatacommunities.org/id/london-borough-council/sutton,London Borough of Sutton,27/05/2021,10002748,11.62, AMZNMKTPLACE,SPLIT - KETOPLASTICS 45 LITER 45 LITRE 45L TOUCH BIN COLOUR BIN FOR HOME GARDEN OFFICE SCHOOL KITCHEN BATHROOM TOP BIN PORTABLE PEDAL BIN REMOVABLE LID (ALL B (100%),Peoples Services,Domestic Supplies,A27021
http://opendatacommunities.org/id/london-borough-council/sutton,London Borough of Sutton,07/06/2021,10002748,55.65, ASDA GROCERIES ONLINE,55.65 A40000 G03070 9999 ASDA TR.PDF,Peoples Services,Equipment And Materials Purchase,A40000
http://opendatacommunities.org/id/london-borough-council/sutton,London Borough of Sutton,07/06/2021,10002748,-0.91, ASDA GROCERIES ONLINE,SHOPPING ASDA TR,Peoples Services,Equipment And Materials Purchase,A40000
http://opendatacommunities.org/id/london-borough-council/sutton,London Borough of Sutton,04/06/2021,10002748,20.24, SUPERDRUG STORES PLC,SUPERDRUG TOILETRIES,Peoples Services,Equipment And Materials Purchase,A40000
http://opendatacommunities.org/id/london-borough-council/sutton,London Borough of Sutton,02/06/2021,10002748,12.96, AMZNMKTPLACE,SPLIT - PLEDGE MULTI SURFACE POLISH SPRAY CLASSIC 250ML (PACK OF 6) (100%),Peoples Services,Equipment And Materials Purchase,A40000
http://opendatacommunities.org/id/london-borough-council/sutton,London Borough of Sutton,27/06/2021,10002748,9.99, AMZNMKTPLACE,SPLIT - THE TWIDDLERS - LARGE EASY TO ASSEMBLE BLUE EAGLE KITE - 82 X 185 CM (17.57%),Peoples Services,Equipment And Materials Purchase,A40000
http://opendatacommunities.org/id/london-borough-council/sutton,London Borough of Sutton,27/06/2021,10002748,9.63, AMZNMKTPLACE,SPLIT - KS3 MATHS COMPLETE REVISION & PRACTICE - FOUNDATION (WITH ONLINE EDITION): PERFECT FOR CATCH-UP AND LEARNING AT HOME (CGP KS3 MATHS) (16.93%),Peoples Services,Equipment And Materials Purchase,A40000
http://opendatacommunities.org/id/london-borough-council/sutton,London Borough of Sutton,27/06/2021,10002748,9.63, AMZNMKTPLACE,SPLIT - KS3 ENGLISH COMPLETE REVISION & PRACTICE (WITH ONLINE EDITION): PERFECT FOR CATCHING UP AT HOME (CGP KS3 ENGLISH) (16.93%),Peoples Services,Equipment And Materials Purchase,A40000
http://opendatacommunities.org/id/london-borough-council/sutton,London Borough of Sutton,27/06/2021,10002748,9.63, AMZNMKTPLACE,SPLIT - KS3 SCIENCE COMPLETE REVISION & PRACTICE - FOUNDATION (WITH ONLINE EDITION): PERFECT FOR CATCH-UP AND LEARNING AT HOME (CGP KS3 SCIENCE) (16.93%),Peoples Services,Equipment And Materials Purchase,A40000
http://opendatacommunities.org/id/london-borough-council/sutton,London Borough of Sutton,27/06/2021,10002748,17.99, AMZNMKTPLACE,SPLIT - EXPLORE PSHE FOR KEY STAGE 3 STUDENT BOOK (31.64%),Peoples Services,Equipment And Materials Purchase,A40000
http://opendatacommunities.org/id/london-borough-council/sutton,London Borough of Sutton,23/06/2021,10002748,15.96, AMZNMKTPLACE AMAZON.CO,SPLIT - BUILDLIFE MOTIVATIONAL 2L WATER BOTTLE - BPA FREE WITH STRAW & PHONE HOLDER HANDLE/REMINDER TO DRINK MORE DAILY/LEAK PROOF REUSABLE LARGE CAPACITY(YEL (100%),Peoples Services,Equipment And Materials Purchase,A40000
http://opendatacommunities.org/id/london-borough-council/sutton,London Borough of Sutton,23/06/2021,10002748,8.8, AMZNMKTPLACE AMAZON.CO,"SPLIT - HAOFY WATERPROOF CAST COVER HAND CAST PROTECTOR FOR SHOWER, ADULT PLASTER CAST SHOWER COVER ARM KEEPS CASTS BANDAGES DRY, REUSABLE CAST SLEEVE BAG COV (100%)",Peoples Services,Equipment And Materials Purchase,A40000
http://opendatacommunities.org/id/london-borough-council/sutton,London Borough of Sutton,22/06/2021,10002748,44.81, ASDA GROCERIES ONLINE,ASDA PURCHASE FOR THE LEAVING CARE TEAM / THORNTON ROAD.,Peoples Services,Equipment And Materials Purchase,A40000
http://opendatacommunities.org/id/london-borough-council/sutton,London Borough of Sutton,22/06/2021,10002748,-1.45, ASDA GROCERIES ONLINE,ASDA REFUND FOR THORNTON ROAD.,Peoples Services,Equipment And Materials Purchase,A40000
http://opendatacommunities.org/id/london-borough-council/sutton,London Borough of Sutton,02/06/2021,10002748,4.99, AMZNMKTPLACE,BALANCING ENTRY AMOUNT (26.29%),Peoples Services,Equipment And Materials Purchase,A40000
http://opendatacommunities.org/id/london-borough-council/sutton,London Borough of Sutton,02/06/2021,10002748,2.49, AMZNMKTPLACE,SPLIT - 12 X EMOJI/SMILEY FACE SPRINGS - PARTY BAG FILLERS (100%),Peoples Services,Equipment And Materials Purchase,A40000
http://opendatacommunities.org/id/london-borough-council/sutton,London Borough of Sutton,02/06/2021,10002748,5.4, AMZNMKTPLACE,SPLIT - DISHMATIC BONUS PACK 1 BLACK FILLABLE HANDLE AND 6 GREEN SPONGE REFILLS (100%),Peoples Services,Equipment And Materials Purchase,A40000
http://opendatacommunities.org/id/london-borough-council/sutton,London Borough of Sutton,02/06/2021,10002748,7.99, AMZNMKTPLACE,SPLIT - 100 X HEAVY DUTY REFUSE SACKS SUPER STRONG BULK KITCHEN BIN LINERS 75L || UK SUPPLIER (100%),Peoples Services,Equipment And Materials Purchase,A40000
http://opendatacommunities.org/id/london-borough-council/sutton,London Borough of Sutton,02/06/2021,10002748,13.99, AMZNMKTPLACE,SPLIT - NQ 40PCS TIK TOK FIDGET TOYS PACK SENSORY FIDGET TOYS PUSH BUBBLE POP TOY STRESS ANXIETY RELIEF TOYS SET FOR ADD OCD AUTISTIC CHILDREN ADULTS ANXIETY (73.71%),Peoples Services,Equipment And Materials Purchase,A40000
http://opendatacommunities.org/id/london-borough-council/sutton,London Borough of Sutton,02/06/2021,10002748,29.99, AMZNMKTPLACE,"SPLIT - CURVER METAL EFFECT PLASTIC ONE TOUCH DECO BIN, SILVER, 40 LITRE (100%)",Peoples Services,Equipment And Materials Purchase,A40000
http://opendatacommunities.org/id/london-borough-council/sutton,London Borough of Sutton,07/06/2021,10002748,34.99, PRETTYLITTLETHING.COM,CLOTHING ALLOWANCE FOR A YOUNG PERSON,Peoples Services,Equipment And Materials Purchase,A40000
http://opendatacommunities.org/id/london-borough-council/sutton,London Borough of Sutton,15/06/2021,10002748,10.62, AMZNMKTPLACE,"SPLIT - THE TEEN'S GUIDE TO SOCIAL SKILLS: PRACTICAL ADVICE FOR BUILDING EMPATHY, SELF-ESTEEM, AND CONFIDENCE (100%)",Peoples Services,Equipment And Materials Purchase,A40000
http://opendatacommunities.org/id/london-borough-council/sutton,London Borough of Sutton,15/06/2021,10002748,12, AMZNMKTPLACE,"SPLIT - HARPIC ACTIVE FRESH TOILET CLEANER GEL, MOUNTAIN PINE, PACK OF 12 3084603 (100%)",Peoples Services,Equipment And Materials Purchase,A40000
http://opendatacommunities.org/id/london-borough-council/sutton,London Borough of Sutton,11/06/2021,10002748,11.95, AMZNMKTPLACE,SPLIT - SRENDI� LARGE/SMALL BLACK PLASTIC MIXING TRAY SAND WATER PLAY_BUILDER EQUIMENT (SMALL) (100%),Peoples Services,Equipment And Materials Purchase,A40000
http://opendatacommunities.org/id/london-borough-council/sutton,London Borough of Sutton,10/06/2021,10002748,5, ASDA STORES 7134,FOOD FOR YOUNG PERSON AT THE HOME,Peoples Services,Equipment And Materials Purchase,A40000
http://opendatacommunities.org/id/london-borough-council/sutton,London Borough of Sutton,14/06/2021,10002748,62.25, ASDA GROCERIES ONLINE,ASDA GROCERIES FOR THORNTON ROAD.,Peoples Services,Equipment And Materials Purchase,A40000
http://opendatacommunities.org/id/london-borough-council/sutton,London Borough of Sutton,14/06/2021,10002748,-2.75, ASDA GROCERIES ONLINE,ASDA GROCERIES REFUND FOR THORNTON ROAD.,Peoples Services,Equipment And Materials Purchase,A40000
http://opendatacommunities.org/id/london-borough-council/sutton,London Borough of Sutton,13/06/2021,10002748,5.65, AMZNMKTPLACE,SPLIT - THE GIRLS' GUIDE TO GROWING UP (4.82%),Peoples Services,Equipment And Materials Purchase,A40000
http://opendatacommunities.org/id/london-borough-council/sutton,London Borough of Sutton,13/06/2021,10002748,89.98, AMZNMKTPLACE,"SPLIT - HAMSWAN SMALL MOBILE PORTABLE AIR CONDITIONER COOLER FAN NOISELESS EVAPORATIVE AIR COOLING RECHARGEABLE DESK FAN, 3 SPEEDS 7 COLORS LIGHT, OFFICE COOL (76.73%)",Peoples Services,Equipment And Materials Purchase,A40000
http://opendatacommunities.org/id/london-borough-council/sutton,London Borough of Sutton,13/06/2021,10002748,9.99, AMZNMKTPLACE,SPLIT - AN ANXIETY BOOK FOR TEENS: AN EASY TO READ A-Z ANXIETY BOOK FOR TEENAGERS (WITH TIPS & ACTIVITIES) (8.52%),Peoples Services,Equipment And Materials Purchase,A40000
http://opendatacommunities.org/id/london-borough-council/sutton,London Borough of Sutton,13/06/2021,10002748,6.41, AMZNMKTPLACE,SPLIT - WHAT'S HAPPENING TO ME? (GIRLS EDITION) (FACTS OF LIFE) (5.47%),Peoples Services,Equipment And Materials Purchase,A40000
http://opendatacommunities.org/id/london-borough-council/sutton,London Borough of Sutton,13/06/2021,10002748,5.24, AMZNMKTPLACE,SPLIT - THE BODY IMAGE BOOK FOR GIRLS: LOVE YOURSELF AND GROW UP FEARLESS (4.46%),Peoples Services,Equipment And Materials Purchase,A40000
http://opendatacommunities.org/id/london-borough-council/sutton,London Borough of Sutton,03/06/2021,10002748,3.45, AMZNMKTPLACE,SPLIT - FRESHSKIN BEAUTY LTD | LAVENDER ESSENTIAL OIL - 10ML - 100% PURE (5.09%),Peoples Services,Miscellaneous Expenses,A49000
http://opendatacommunities.org/id/london-borough-council/sutton,London Borough of Sutton,03/06/2021,10002748,12.99, AMZNMKTPLACE,SPLIT - BANKERS BOX PROSTORE PLASTIC STORAGE BOX - 18.5 LITRE (INT. DIMENSIONS 28 X 32 X 20 CM) (19.18%),Peoples Services,Miscellaneous Expenses,A49000
http://opendatacommunities.org/id/london-borough-council/sutton,London Borough of Sutton,03/06/2021,10002748,19, AMZNMKTPLACE,"SPLIT - SCIENCE OF SKIN, SOLUTION FOR SCARS ADVANCED ACTIVE SCAR CREAM, FRAGRANCE FREE, 30 ML (28.05%)",Peoples Services,Miscellaneous Expenses,A49000
http://opendatacommunities.org/id/london-borough-council/sutton,London Borough of Sutton,03/06/2021,10002748,4.3, AMZNMKTPLACE,"SPLIT - IKEA BOLMEN - TOILET BRUSH/HOLDER, BLACK (6.35%)",Peoples Services,Miscellaneous Expenses,A49000
http://opendatacommunities.org/id/london-borough-council/sutton,London Borough of Sutton,03/06/2021,10002748,11.49, AMZNMKTPLACE,SPLIT - THE TWIDDLERS - 24 TUBS OF BOUNCING SLIME / PUTTY - ASSORTED COLOURS (16.96%),Peoples Services,Miscellaneous Expenses,A49000
http://opendatacommunities.org/id/london-borough-council/sutton,London Borough of Sutton,03/06/2021,10002748,11.99, AMZNMKTPLACE,"SPLIT - MR.SIGA MICROFIBER CLEANING CLOTH,PACK OF 12,SIZE:12.6"" X 12.6"" (17.7%)",Peoples Services,Miscellaneous Expenses,A49000
http://opendatacommunities.org/id/london-borough-council/sutton,London Borough of Sutton,03/06/2021,10002748,4.51, AMZNMKTPLACE,"SPLIT - INECTO NATURALS MOISTURE CREAM, COCONUT, 250 MILLILITRE (6.67%)",Peoples Services,Miscellaneous Expenses,A49000
http://opendatacommunities.org/id/london-borough-council/sutton,London Borough of Sutton,03/06/2021,10002748,40.79, ASDA GROCERIES ONLINE,ASDA LEAVING CARE TEAM ITEMS,Peoples Services,Miscellaneous Expenses,A49000
http://opendatacommunities.org/id/london-borough-council/sutton,London Borough of Sutton,11/06/2021,10002748,100, SPRINGHOUSE SOLICI,SOLICITOR FEES  FOR A CLIENT,Peoples Services,Professional Fees,A44066
http://opendatacommunities.org/id/london-borough-council/sutton,London Borough of Sutton,20/06/2021,10002748,44.16, DELIVEROO,REFERRED TO FRAUD TEAM AS UNRECOGNISED,Peoples Services,Other Supplies & Services,A44291
http://opendatacommunities.org/id/london-borough-council/sutton,London Borough of Sutton,01/06/2021,10002748,85.9, LNE RAILWAY DRPU,FINE PAID FOR A LEAVING CARE CLIENT,Peoples Services,Miscellaneous Expenses,A49000
http://opendatacommunities.org/id/london-borough-council/sutton,London Borough of Sutton,23/06/2021,10002748,53, WILKO.COM,WILKO PURCHASE FOR ASYLUM SEEKER TEAM.,Peoples Services,C.C.A Travel & Subsistance,A61010
http://opendatacommunities.org/id/london-borough-council/sutton,London Borough of Sutton,28/05/2021,10002748,152.46, ARGOS LTD,A61021 G03080  ARGOS TV PURCHASE - 182.95   28.05.2021 PDF,Peoples Services,Set Up Costs - Children Leaving Care,A61021
http://opendatacommunities.org/id/london-borough-council/sutton,London Borough of Sutton,03/06/2021,10002748,7.82, AMZNMKTPLACE,11.98 A61021 G03080 AMAZON - CHOPSTICKS.PDFSPLIT - FIBERGLASS CHOPSTICKS SET REUSABLE DISHWASHER-SAFE CHOPSTICKS TEXTURED TIP ALLOY CHOPSTICK FOR HOME RESTAURANT HOUSEWARMING (5 PAIRS) (65.28%),Peoples Services,Set Up Costs - Children Leaving Care,A61021
http://opendatacommunities.org/id/london-borough-council/sutton,London Borough of Sutton,03/06/2021,10002748,4.16, AMZNMKTPLACE,BALANCING ENTRY AMOUNT (34.72%),Peoples Services,Set Up Costs - Children Leaving Care,A61021
http://opendatacommunities.org/id/london-borough-council/sutton,London Borough of Sutton,17/06/2021,10002748,184.99, AMZNMKTPLACE,SPLIT - COMFORT NIGHT SLEEP LTD'S RELIABLE DIVAN BED SET WITH MEMORY FOAM MATTRESS AND HEADBOARD WITH 2 DRAWERS IN BLACK COLOR | DOUBLE | 4FT6 | QUEEN | (82.22%),Peoples Services,Set Up Costs - Children Leaving Care,A61021
http://opendatacommunities.org/id/london-borough-council/sutton,London Borough of Sutton,17/06/2021,10002748,40, AMZNMKTPLACE,BALANCING ENTRY AMOUNT (17.78%),Peoples Services,Set Up Costs - Children Leaving Care,A61021
http://opendatacommunities.org/id/london-borough-council/sutton,London Borough of Sutton,02/06/2021,10002748,20.95, ARGOS LTD,ARGOS CUTLERY AND BOWLS,Peoples Services,Set Up Costs - Children Leaving Care,A61021
http://opendatacommunities.org/id/london-borough-council/sutton,London Borough of Sutton,02/06/2021,10002748,10.5, WILKO.COM,WILKOS - GLASSES & CUPS,Peoples Services,Set Up Costs - Children Leaving Care,A61021
http://opendatacommunities.org/id/london-borough-council/sutton,London Borough of Sutton,01/06/2021,10002748,917.98, SUTTONAPPLI,"SUTTON APPLIANCES - W-MACHINE, FFREEZER AND COOKER",Peoples Services,Set Up Costs - Children Leaving Care,A61021
http://opendatacommunities.org/id/london-borough-council/sutton,London Borough of Sutton,01/06/2021,10002748,182.95, ARGOS LTD,ARGOS TV,Peoples Services,Set Up Costs - Children Leaving Care,A61021
http://opendatacommunities.org/id/london-borough-council/sutton,London Borough of Sutton,17/06/2021,10002748,191.88, ZOOM.US 888-799-9666,ZOOM SUBSCRIPTION FOR THE REFERRAL AND ASSESSMENT TEAM.,Peoples Services,Subscriptions,A47010
http://opendatacommunities.org/id/london-borough-council/sutton,London Borough of Sutton,24/06/2021,10002748,71.94, ZOOM.US 888-799-9666,ZOOM SUBSCRIPTIONS FOR THE REFERRAL AND ASSESSMENT TEAM.,Peoples Services,Subscriptions,A47010
http://opendatacommunities.org/id/london-borough-council/sutton,London Borough of Sutton,02/06/2021,10002748,350, BEST WESTERN HOTELS,HOTEL RESERVATION - BEST WESTERN PLUS LONDON,Peoples Services,Client Care/Assistance,A61011
http://opendatacommunities.org/id/london-borough-council/sutton,London Borough of Sutton,21/06/2021,10002748,81, PREMIER INN,81.00 - A61011 G03100 9999 - SUTTON PREMIER INN.PNG,Peoples Services,Client Care/Assistance,A61011
http://opendatacommunities.org/id/london-borough-council/sutton,London Borough of Sutton,15/06/2021,10002748,153, PREMIER INN,153.00 - A61011 G03100 9999 - SUTTON PREMIER INN .PNG,Peoples Services,Client Care/Assistance,A61011
http://opendatacommunities.org/id/london-borough-council/sutton,London Borough of Sutton,09/06/2021,10002748,250, BEST WESTERN HOTELS,BEST WESTERN PLUS LONDON BOOKING,Peoples Services,Client Care/Assistance,A61011
http://opendatacommunities.org/id/london-borough-council/sutton,London Borough of Sutton,14/06/2021,10002748,50, BEST WESTERN HOTELS,BEST WESTERN PLUS LONDON BOOKING,Peoples Services,Client Care/Assistance,A61011
http://opendatacommunities.org/id/london-borough-council/sutton,London Borough of Sutton,06/06/2021,10002748,12.99, AMZNMKTPLACE AMAZON.CO,"SPLIT - NUOSHEN 6 PCS PLASTIC FOOTBALL WITH HAND HELD PUMP, PVC SOCCER LIGHTWEIGHT KICK BALL WITH RANDOM COLOR FOR INDOOR, OUTDOOR, SCHOOL, BIRTHDAY, CHARITY (41.96%)",Peoples Services,Equipment And Materials Purchase,A40000
http://opendatacommunities.org/id/london-borough-council/sutton,London Borough of Sutton,06/06/2021,10002748,17.97, AMZNMKTPLACE AMAZON.CO,"90.95 A40000 G03110 9999 AMAZON.PDFSPLIT - DURACELL PLUS AA ALKALINE BATTERIES [PACK OF 12], 1,5 VOLTS LR06 MN1500 (58.04%)",Peoples Services,Equipment And Materials Purchase,A40000
http://opendatacommunities.org/id/london-borough-council/sutton,London Borough of Sutton,06/06/2021,10002748,59.99, AMZNMKTPLACE AMAZON.CO,"SPLIT - PLUM UNISEX-YOUTH JUNIOR BOUNCER CHILDREN'S TRAMPOLINE, PURPLE (100%)",Peoples Services,Equipment And Materials Purchase,A40000
http://opendatacommunities.org/id/london-borough-council/sutton,London Borough of Sutton,08/06/2021,10002748,2, THE WORKS,PARCEL WRAPPING PAPER,Peoples Services,Equipment And Materials Purchase,A40000
http://opendatacommunities.org/id/london-borough-council/sutton,London Borough of Sutton,15/06/2021,10002748,22, KENT COUNTY COUNCIL,KENT BIRTH CERTIFICATE PURCHASE,Peoples Services,Equipment And Materials Purchase,A40000
http://opendatacommunities.org/id/london-borough-council/sutton,London Borough of Sutton,02/06/2021,10002748,9, THETRAINLINE.COM,TRAINLINE FOR LOOKED AFTER CHILDREN TEAM,Peoples Services,Equipment And Materials Purchase,A40000
http://opendatacommunities.org/id/london-borough-council/sutton,London Borough of Sutton,02/06/2021,10002748,26.45, THETRAINLINE.COM,A33010 G03110 9999 - TRAINLINE,Peoples Services,Equipment And Materials Purchase,A40000
http://opendatacommunities.org/id/london-borough-council/sutton,London Borough of Sutton,03/06/2021,10002748,358, AMZNMKTPLACE AMAZON.CO,SPLIT - BRACKENSTYLE CHESTER PICNIC TABLE - A FRAME PUB BENCH - 6 PERSON (DARK GREY) (100%),Peoples Services,Equipment And Materials Purchase,A40000
http://opendatacommunities.org/id/london-borough-council/sutton,London Borough of Sutton,03/06/2021,10002748,56, WWW.LEEDS-CASTLE.COM,ADMISSION TICKETS X 2,Peoples Services,Equipment And Materials Purchase,A40000
http://opendatacommunities.org/id/london-borough-council/sutton,London Borough of Sutton,03/06/2021,10002748,59.95, AMZNMKTPLACE AMAZON.CO,SPLIT - PLAY SAND RAINBOW ECO CHILDREN'S SAFE NON-TOXIC FOR SANDPIT 20KG BAG (100%),Peoples Services,Equipment And Materials Purchase,A40000
http://opendatacommunities.org/id/london-borough-council/sutton,London Borough of Sutton,02/06/2021,10002748,54.75, AMZNMKTPLACE AMAZON.CO,SPLIT - UNIBOS GARDEN BEACH PATIO CAMPING PICNIC TILTING TILT MULTI COLOURED UMBRELLA PARASOL SUN SHADE PROTECTION UPF40 (MULTI-COLOUR) (100%),Peoples Services,Equipment And Materials Purchase,A40000
http://opendatacommunities.org/id/london-borough-council/sutton,London Borough of Sutton,21/06/2021,10002748,22, KENT COUNTY COUNCIL,BIRTH CERTIFICATE IN KENT REQUESTED BY THE LOOKED AFTER CHILDREN'S TEAM.,Peoples Services,Miscellaneous Expenses,A49000
http://opendatacommunities.org/id/london-borough-council/sutton,London Borough of Sutton,16/06/2021,10002748,25.1, WWW.HOVERTRAVEL.COM,HOVERCRAFT TRAVEL FOR SOCIAL WORKER TO MEET CLIENT WITHIN FAMILY SUPPORT TEAM.,Peoples Services,Equipment And Materials Purchase,A40000
http://opendatacommunities.org/id/london-borough-council/sutton,London Borough of Sutton,18/06/2021,10002748,39.61, MINICABIT,MINICABIT FOR CLIENTS WITHIN THE FAMILY SUPPORT TEAM.,Peoples Services,Equipment And Materials Purchase,A40000
http://opendatacommunities.org/id/london-borough-council/sutton,London Borough of Sutton,18/06/2021,10002748,25.1, WWW.HOVERTRAVEL.COM,HOVERCRAFT TRAVEL BOOKING,Peoples Services,Equipment And Materials Purchase,A40000
http://opendatacommunities.org/id/london-borough-council/sutton,London Borough of Sutton,14/06/2021,10002748,25, LB CROYDON,CROYDON BIRTH CERTIFICATE PURCHASE,Peoples Services,Equipment And Materials Purchase,A40000
http://opendatacommunities.org/id/london-borough-council/sutton,London Borough of Sutton,10/06/2021,10002748,98.33, WWW.WIGHTLINK.CO.UK,TRAVEL REQUIRED FOR A VISIT,Peoples Services,Equipment And Materials Purchase,A40000
http://opendatacommunities.org/id/london-borough-council/sutton,London Borough of Sutton,10/06/2021,10002748,20.92, WWW.HOVERTRAVEL.COM,TRAVEL REQUIRED FOR A VISIT,Peoples Services,Equipment And Materials Purchase,A40000
http://opendatacommunities.org/id/london-borough-council/sutton,London Borough of Sutton,24/06/2021,10002748,39.61, MINICABIT,MINICABIT FOR CLIENT WITH THE FAMILY SUPPORT TEAM.,Peoples Services,Equipment And Materials Purchase,A40000
http://opendatacommunities.org/id/london-borough-council/sutton,London Borough of Sutton,04/06/2021,10002748,263.95, ARGOS LTD,MATRESS ARGOS,Peoples Services,Equipment And Materials Purchase,A40000
http://opendatacommunities.org/id/london-borough-council/sutton,London Borough of Sutton,10/06/2021,10002748,-8.54, WWW.WIGHTLINK.CO.UK,REFUND AS THE TRIP DID NOT TAKE PLACE,Peoples Services,C.C.A Travel & Subsistance,A61010
http://opendatacommunities.org/id/london-borough-council/sutton,London Borough of Sutton,04/06/2021,10002748,25.1, WWW.HOVERTRAVEL.COM,HOVERTRAVEL BOOKING,Peoples Services,C.C.A Travel & Subsistance,A61010
http://opendatacommunities.org/id/london-borough-council/sutton,London Borough of Sutton,04/06/2021,10002748,16.44, NRS HEALTHCARE,PERSONAL ALARMS X 2,Peoples Services,Client Care/Assistance,A61011
http://opendatacommunities.org/id/london-borough-council/sutton,London Borough of Sutton,27/05/2021,10002748,528.91, PREMIER INN,PREMIER INN,Peoples Services,C.C.A Rent & Utilities,A61009
http://opendatacommunities.org/id/london-borough-council/sutton,London Borough of Sutton,27/05/2021,10002748,67, PREMIER INN,PREMIER INN,Peoples Services,C.C.A Rent & Utilities,A61009
http://opendatacommunities.org/id/london-borough-council/sutton,London Borough of Sutton,27/05/2021,10002748,148.47, PREMIER INN,PREMIER INN,Peoples Services,C.C.A Rent & Utilities,A61009
http://opendatacommunities.org/id/london-borough-council/sutton,London Borough of Sutton,27/05/2021,10002748,428.41, PREMIER INN,PREMIER INN,Peoples Services,C.C.A Rent & Utilities,A61009
http://opendatacommunities.org/id/london-borough-council/sutton,London Borough of Sutton,26/05/2021,10002748,272.86, PREMIER INN,PREMIER INN FOR CLIENT TO STAY,Peoples Services,C.C.A Rent & Utilities,A61009
http://opendatacommunities.org/id/london-borough-council/sutton,London Borough of Sutton,26/05/2021,10002748,-272.86, PREMIER INN,PREMIER INN FOR CLIENT TO STAY,Peoples Services,C.C.A Rent & Utilities,A61009
http://opendatacommunities.org/id/london-borough-council/sutton,London Borough of Sutton,23/06/2021,10002748,399, PREMIER INN,PREMIER INN FOR CLIENT NRPF.,Peoples Services,C.C.A Rent & Utilities,A61009
http://opendatacommunities.org/id/london-borough-council/sutton,London Borough of Sutton,17/06/2021,10002748,362, PREMIER INN,HOTEL STAY,Peoples Services,C.C.A Rent & Utilities,A61009
http://opendatacommunities.org/id/london-borough-council/sutton,London Borough of Sutton,26/05/2021,10002748,85, FACEBK  6LYRV3FG32,FACEBOOK ADVERTISEMENT FOR FOSTERING RECRUITMENT MARKETING,Peoples Services,Recruitment Expenses,A15026
http://opendatacommunities.org/id/london-borough-council/sutton,London Borough of Sutton,26/06/2021,10002748,49.99, FACEBK  84Z644PG32,FACEBOOK ADVERTISING FOR FOSTERING RECRUITMENT,Peoples Services,Recruitment Expenses,A15026
http://opendatacommunities.org/id/london-borough-council/sutton,London Borough of Sutton,25/06/2021,10002748,70, FACEBK  MSEGN3TG32,FACEBOOK ADVERTISING FOR FOSTERING RECRUITMENT,Peoples Services,Recruitment Expenses,A15026
http://opendatacommunities.org/id/london-borough-council/sutton,London Borough of Sutton,02/06/2021,10002748,41.22, MINICABIT,MINICAB FOR ADOPTION TEAM,Peoples Services,Equipment And Materials Purchase,A40000
http://opendatacommunities.org/id/london-borough-council/sutton,London Borough of Sutton,09/06/2021,10002748,33.01, MINICABIT,CAB REQUIRED FOR A YOUNG PERSON,Peoples Services,Equipment And Materials Purchase,A40000
http://opendatacommunities.org/id/london-borough-council/sutton,London Borough of Sutton,16/06/2021,10002748,39.61, MINICABIT,MINICABS FOR CLIENTS WITHIN THE ADOPTION AND PERMANENCE TEAM.,Peoples Services,Equipment And Materials Purchase,A40000
http://opendatacommunities.org/id/london-borough-council/sutton,London Borough of Sutton,01/06/2021,10002748,21.2, WWW.WIGHTLINK.CO.UK,FERRY TO ISLE OF WIGHT WHITELINK,Peoples Services,Client Care/Assistance,A61011
http://opendatacommunities.org/id/london-borough-council/sutton,London Borough of Sutton,08/06/2021,10002748,33.62, WWW.CORAM.ORG.UK,BOOKS NEEDED FOR SOCIAL WORKER,Peoples Services,Books,A43050
http://opendatacommunities.org/id/london-borough-council/sutton,London Borough of Sutton,16/06/2021,10002748,25.1, WWW.HOVERTRAVEL.COM,HOVERCRAFT TRAVEL FOR SOCIAL WORKER TO MEET CLIENT WITHIN CHILD PROTECTION TEAM.,Peoples Services,Equipment And Materials Purchase,A40000
http://opendatacommunities.org/id/london-borough-council/sutton,London Borough of Sutton,07/06/2021,10002748,62.97, AMZNMKTPLACE AMAZON.CO,"69.97 - A40000 G03400 9999 - AMAZON SFC.PNG - BRAMBLE - SMALL SAND & WATER TABLE WITH LID & TOYS - MOULDS, BOAT, WATERING CAN & MORE (100%)",Peoples Services,Equipment And Materials Purchase,A40000
http://opendatacommunities.org/id/london-borough-council/sutton,London Borough of Sutton,07/06/2021,10002748,136.76, TESCO STORES 5999,TESCO ONLINE FOOD ORDER,Peoples Services,Equipment And Materials Purchase,A40000
http://opendatacommunities.org/id/london-borough-council/sutton,London Borough of Sutton,13/06/2021,10002748,11.99, ZOOM.US 888-799-9666,ZOOM SUBSCRIPTION FOR CICC,Peoples Services,LAC - Education,A44280
http://opendatacommunities.org/id/london-borough-council/sutton,London Borough of Sutton,25/06/2021,10002748,164, PREMIER INN,164.00 - A61011 G03719 9999 - PREMIER INN .PNG,Peoples Services,Client Care/Assistance,A61011
http://opendatacommunities.org/id/london-borough-council/sutton,London Borough of Sutton,11/06/2021,10002748,685.83, HOLIDAY INNS,HOTEL REQUIRED FOR A CLIENT,Peoples Services,C.C.A Travel & Subsistance,A61010
http://opendatacommunities.org/id/london-borough-council/sutton,London Borough of Sutton,14/06/2021,10002748,54.98, PREMIER INN,PREMIER INN FOR GREEN WEST LOCALITY TEAM.,Peoples Services,Client Care/Assistance,A61011
http://opendatacommunities.org/id/london-borough-council/sutton,London Borough of Sutton,11/06/2021,10002748,90.83, PREMIER INN,HOTEL REQUIRED FOR A CLIENT,Peoples Services,Client Care/Assistance,A61011
http://opendatacommunities.org/id/london-borough-council/sutton,London Borough of Sutton,17/06/2021,10002748,-65, HEATH COTTAGE HOTEL,ACCOMODATION,Peoples Services,Client Care/Assistance,A61011
http://opendatacommunities.org/id/london-borough-council/sutton,London Borough of Sutton,22/06/2021,10002748,40.5, PREMIER INN,PREMIER INN FOR CLIENT BASED WITHIN THE GREEN WEST LOCALITY TEAM.,Peoples Services,Client Care/Assistance,A61011
http://opendatacommunities.org/id/london-borough-council/sutton,London Borough of Sutton,22/06/2021,10002748,35, PREMIER INN,PREMIER INN FOR CLIENT WITHIN THE GREEN WEST LOCALITY TEAM.,Peoples Services,Client Care/Assistance,A61011
http://opendatacommunities.org/id/london-borough-council/sutton,London Borough of Sutton,01/06/2021,10002748,384.42, HOLIDAY INNS,A61011 G03830 9999 - HOLIDAY INN BOOKING.PNG,Peoples Services,Client Care/Assistance,A61011
http://opendatacommunities.org/id/london-borough-council/sutton,London Borough of Sutton,04/06/2021,10002748,332.5, HOLIDAY INNS,"HOLIDAY INN ACCOMMODATION AND PARKING, SUTTON",Peoples Services,Client Care/Assistance,A61011
http://opendatacommunities.org/id/london-borough-council/sutton,London Borough of Sutton,02/06/2021,10002748,60, ARGOS LTD,ARGOS - COT BED MATTRESS,Peoples Services,Client Care/Assistance,A61011
http://opendatacommunities.org/id/london-borough-council/sutton,London Borough of Sutton,02/06/2021,10002748,176.95, ARGOS LTD,ARGOS - BABY COT BED,Peoples Services,Client Care/Assistance,A61011
http://opendatacommunities.org/id/london-borough-council/sutton,London Borough of Sutton,11/06/2021,10002748,628.07, EASYHOTEL,HOTEL STAY REQUIRED FOR A CLIENT,Peoples Services,Accommodation - Supported Living,A62001
http://opendatacommunities.org/id/london-borough-council/sutton,London Borough of Sutton,23/06/2021,10002748,63.94, ARGOS LTD,ARGOS PURCHASE FOR THE HOSPITAL TEAM.,Peoples Services,Equipment And Materials Purchase,A40000
http://opendatacommunities.org/id/london-borough-council/sutton,London Borough of Sutton,15/06/2021,10002748,131.84, STORAGEMART UK A-66D94,STORAGE MART FOR A CLIENT WITHIN THE SUTTON AND CHEAM TEAM.,Peoples Services,Storage And Archiving Services,A44085
http://opendatacommunities.org/id/london-borough-council/sutton,London Borough of Sutton,25/06/2021,10002748,171.62, SAINSBURYS ARGOS,FOOD VOUCHERS FOR START CLIENTS EMERGENCIES,Peoples Services,Miscellaneous Expenses,A49000
http://opendatacommunities.org/id/london-borough-council/sutton,London Borough of Sutton,25/06/2021,10002748,169.48, ASDA STORES LTD,FOOD VOUCHERS FOR START CLIENTS EMERGENCIES,Peoples Services,Miscellaneous Expenses,A49000
http://opendatacommunities.org/id/london-borough-council/sutton,London Borough of Sutton,25/06/2021,10002748,209.83, CS MORRISONS GIFT CARD,FOOD VOUCHERS FOR START CLIENTS EMERGENCIES,Peoples Services,Miscellaneous Expenses,A49000
http://opendatacommunities.org/id/london-borough-council/sutton,London Borough of Sutton,10/06/2021,10002748,208.33, WM MORRISONS STORE,FOOD VOUCHERS,Peoples Services,Miscellaneous Expenses,A49000
http://opendatacommunities.org/id/london-borough-council/sutton,London Borough of Sutton,10/06/2021,10002748,467.16, ETC VENUES,ADULT SOCIAL CARE AWAYDAY ON THE 11.06.21,Peoples Services,Hire of Rooms,A22010
http://opendatacommunities.org/id/london-borough-council/sutton,London Borough of Sutton,27/05/2021,10002748,118.8, WWW.PUBLICPOLICYEXCHAN,IMPROVING SEND PROVISIONS: DEVELOPING POLICY TO BEST HELP SPECIAL NEEDS CHILDREN & OVERCOMING FUNDING CHALLENGES WEBINAR,Peoples Services,Conference Expenses,A43075
http://opendatacommunities.org/id/london-borough-council/sutton,London Borough of Sutton,22/06/2021,10002748,433.33, IKEA LTD SHOP ONLINE,FLORISTRY WORK STATIONS,Health and Wellbeing,Classroom furniture and equipment,A40017
http://opendatacommunities.org/id/london-borough-council/sutton,London Borough of Sutton,23/06/2021,10002748,11.66, AMZNMKTPLACE,AMAZON JT MOUSE 13.99 220621,Health and Wellbeing,IT Hardware Purchase,A45005
http://opendatacommunities.org/id/london-borough-council/sutton,London Borough of Sutton,22/06/2021,10002748,9.99, WWW.INSTANTPRINT.C,INSTANTPRINT A3 POSTERS 2122 240621 11.99,Health and Wellbeing,Publicity,A44266
http://opendatacommunities.org/id/london-borough-council/sutton,London Borough of Sutton,17/06/2021,10002748,120, WWW.INSTANTPRINT.C,INSTANTPRINT 2122 ENROLMENT FORMS X2K 180621 144,Health and Wellbeing,Publicity,A44266
http://opendatacommunities.org/id/london-borough-council/sutton,London Borough of Sutton,17/06/2021,10002748,"2,083.33", WWW.INSTANTPRINT.C,INSTANTPRINT 2122 FLYER X60K 2500 170621,Health and Wellbeing,Publicity,A44266
http://opendatacommunities.org/id/london-borough-council/sutton,London Borough of Sutton,17/06/2021,10002748,766.67, WWW.INSTANTPRINT.C,INSTANTPRINT 2122 COURSE GUIDE X5K 920 170621,Health and Wellbeing,Publicity,A44266
http://opendatacommunities.org/id/london-borough-council/sutton,London Borough of Sutton,08/06/2021,10002748,39.99, ADOBE STOCK,ADOBE 070621 47.99,Health and Wellbeing,Publicity,A44266
http://opendatacommunities.org/id/london-borough-council/sutton,London Borough of Sutton,30/05/2021,10002748,52.27, MAILCHIMP,300521 MAILCHIMP 62.72,Health and Wellbeing,Publicity,A44266
http://opendatacommunities.org/id/london-borough-council/sutton,London Borough of Sutton,25/06/2021,10002748,9.78, WM MORRISONS STORE,INGREDIENTS,Health and Wellbeing,Equipment And Materials Purchase,A40000
http://opendatacommunities.org/id/london-borough-council/sutton,London Borough of Sutton,18/06/2021,10002748,8.24, WM MORRISONS STORE,COOKERY INGREDIENTS,Health and Wellbeing,Equipment And Materials Purchase,A40000
http://opendatacommunities.org/id/london-borough-council/sutton,London Borough of Sutton,16/06/2021,10002748,2.49, WALLINGTON BARGAIN BUY,COOKERY EQUIPMENT,Health and Wellbeing,Equipment And Materials Purchase,A40000
http://opendatacommunities.org/id/london-borough-council/sutton,London Borough of Sutton,16/06/2021,10002748,17.19, SAINSBURYS SACAT 2006,COOKERY INGREDIENTS,Health and Wellbeing,Equipment And Materials Purchase,A40000
http://opendatacommunities.org/id/london-borough-council/sutton,London Borough of Sutton,09/06/2021,10002748,10.97, SAINSBURYS SACAT 2006,COOKERY INGREDIENTS,Health and Wellbeing,Equipment And Materials Purchase,A40000
http://opendatacommunities.org/id/london-borough-council/sutton,London Borough of Sutton,26/05/2021,10002748,12.75, SAINSBURYS SACAT 2006,COOKERY INGREDIENTS,Health and Wellbeing,Equipment And Materials Purchase,A40000
http://opendatacommunities.org/id/london-borough-council/sutton,London Borough of Sutton,26/05/2021,10002748,3.67, AMAZON.CO.UK 2T0GA70C4,BALANCING ENTRY AMOUNT (21.92%),Peoples Services,LAC - Education,A44280
http://opendatacommunities.org/id/london-borough-council/sutton,London Borough of Sutton,26/05/2021,10002748,7.87, AMAZON.CO.UK 2T7SY7EE4,SPLIT - ORCHARD TOYS POST BOX GAME (49.82%),Peoples Services,LAC - Education,A44280
http://opendatacommunities.org/id/london-borough-council/sutton,London Borough of Sutton,22/06/2021,10002748,10, AMAZON.CO.UK 288MR6DJ4,SPLIT - AMAZON LOGO SQUID - AMAZON.CO.UK EGIFT VOUCHER (100%),Peoples Services,LAC - Education,A44280
http://opendatacommunities.org/id/london-borough-council/sutton,London Borough of Sutton,13/06/2021,10002748,8.99, AMAZON.CO.UK 289QP3A74,SPLIT - THE JOLLY POSTMAN (69.26%),Peoples Services,LAC - Education,A44280
http://opendatacommunities.org/id/london-borough-council/sutton,London Borough of Sutton,13/06/2021,10002748,3.99, AMAZON.CO.UK 289QP3A74,BALANCING ENTRY AMOUNT (30.74%),Peoples Services,LAC - Education,A44280
http://opendatacommunities.org/id/london-borough-council/sutton,London Borough of Sutton,11/06/2021,10002748,23.43, AMZNMKTPLACE,SPLIT - LEARNING RESOURCES PRETEND AND PLAY POST OFFICE (100%),Peoples Services,LAC - Education,A44280
http://opendatacommunities.org/id/london-borough-council/sutton,London Borough of Sutton,09/06/2021,10002748,8.92, AMAZON.CO.UK 2816F2LF4,SPLIT - ORCHARD TOYS POST BOX GAME (49.84%),Peoples Services,LAC - Education,A44280
http://opendatacommunities.org/id/london-borough-council/sutton,London Borough of Sutton,09/06/2021,10002748,5.42, AMAZON.CO.UK 2816F2LF4,SPLIT - POSTMAN BEAR: 20TH ANNIVERSARY EDITION (TALES FROM ACORN WOOD) (30.27%),Peoples Services,LAC - Education,A44280
http://opendatacommunities.org/id/london-borough-council/sutton,London Borough of Sutton,09/06/2021,10002748,2.21, AMAZON.CO.UK 2816F2LF4,BALANCING ENTRY AMOUNT (19.89%),Peoples Services,LAC - Education,A44280
http://opendatacommunities.org/id/london-borough-council/sutton,London Borough of Sutton,08/06/2021,10002748,-8.99, AMZ AMAZON.CO.UK,SPLIT - THE JOLLY POSTMAN (25.7%),Peoples Services,LAC - Education,A44280
http://opendatacommunities.org/id/london-borough-council/sutton,London Borough of Sutton,08/06/2021,10002748,-21.66, AMZ AMAZON.CO.UK,SPLIT - LEARNING RESOURCES PRETEND AND PLAY POST OFFICE (74.3%),Peoples Services,LAC - Education,A44280
http://opendatacommunities.org/id/london-borough-council/sutton,London Borough of Sutton,07/06/2021,10002748,7.1, AMAZON.CO.UK 281YL9CP4,SPLIT - AMAZON BASICS LAPTOP SLEEVE FOR 14-INCH LAPTOPS (67.19%),Peoples Services,LAC - Education,A44280
http://opendatacommunities.org/id/london-borough-council/sutton,London Borough of Sutton,07/06/2021,10002748,3.47, AMAZON.CO.UK 281YL9CP4,BALANCING ENTRY AMOUNT (32.81%),Peoples Services,LAC - Education,A44280
http://opendatacommunities.org/id/london-borough-council/sutton,London Borough of Sutton,07/06/2021,10002748,190.83, AMZNMKTPLACE AMAZON.CO,"SPLIT - ACER CHROMEBOOK 314 CB314-H - (INTEL CELERON N4000, 4GB RAM, 32GB EMMC, 14 INCH HD DISPLAY, CHROME OS, SILVER) (100%)",Peoples Services,LAC - Education,A44280
http://opendatacommunities.org/id/london-borough-council/sutton,London Borough of Sutton,26/05/2021,10002748,5.1, AMAZON.CO.UK 2T0GA70C4,SPLIT - POSTMAN BEAR: 20TH ANNIVERSARY EDITION (TALES FROM ACORN WOOD) (28.26%),Peoples Services,LAC - Education,A44280
http://opendatacommunities.org/id/london-borough-council/sutton,London Borough of Sutton,31/05/2021,10002748,21.66, AMAZON.CO.UK 2T15D2BV4,SPLIT - LEARNING RESOURCES PRETEND AND PLAY POST OFFICE (74.3%),Peoples Services,LAC - Education,A44280
http://opendatacommunities.org/id/london-borough-council/sutton,London Borough of Sutton,31/05/2021,10002748,8.99, AMAZON.CO.UK 2T15D2BV4,SPLIT - THE JOLLY POSTMAN (25.7%),Peoples Services,LAC - Education,A44280
http://opendatacommunities.org/id/london-borough-council/sutton,London Borough of Sutton,31/05/2021,10002748,21.66, AMAZON.CO.UK 2T4Z99BK4,SPLIT - LEARNING RESOURCES PRETEND AND PLAY POST OFFICE (74.3%),Peoples Services,LAC - Education,A44280
http://opendatacommunities.org/id/london-borough-council/sutton,London Borough of Sutton,31/05/2021,10002748,8.99, AMAZON.CO.UK 2T4Z99BK4,SPLIT - THE JOLLY POSTMAN (25.7%),Peoples Services,LAC - Education,A44280
http://opendatacommunities.org/id/london-borough-council/sutton,London Borough of Sutton,30/05/2021,10002748,8.99, AMAZON.CO.UK 2T6MT0HU4,SPLIT - THE JOLLY POSTMAN (25.7%),Peoples Services,LAC - Education,A44280
http://opendatacommunities.org/id/london-borough-council/sutton,London Borough of Sutton,30/05/2021,10002748,21.66, AMAZON.CO.UK 2T6MT0HU4,SPLIT - LEARNING RESOURCES PRETEND AND PLAY POST OFFICE (74.3%),Peoples Services,LAC - Education,A44280
http://opendatacommunities.org/id/london-borough-council/sutton,London Borough of Sutton,30/05/2021,10002748,21.66, AMAZON.CO.UK 2T46M1B14,SPLIT - LEARNING RESOURCES PRETEND AND PLAY POST OFFICE (74.3%),Peoples Services,LAC - Education,A44280
http://opendatacommunities.org/id/london-borough-council/sutton,London Borough of Sutton,30/05/2021,10002748,8.99, AMAZON.CO.UK 2T46M1B14,SPLIT - THE JOLLY POSTMAN (25.7%),Peoples Services,LAC - Education,A44280
http://opendatacommunities.org/id/london-borough-council/sutton,London Borough of Sutton,30/05/2021,10002748,8.99, AMAZON.CO.UK 2T8Z58B24,SPLIT - THE JOLLY POSTMAN (25.7%),Peoples Services,LAC - Education,A44280
http://opendatacommunities.org/id/london-borough-council/sutton,London Borough of Sutton,30/05/2021,10002748,21.66, AMAZON.CO.UK 2T8Z58B24,SPLIT - LEARNING RESOURCES PRETEND AND PLAY POST OFFICE (74.3%),Peoples Services,LAC - Education,A44280
http://opendatacommunities.org/id/london-borough-council/sutton,London Borough of Sutton,29/05/2021,10002748,21.66, AMAZON.CO.UK 2T82205X4,SPLIT - LEARNING RESOURCES PRETEND AND PLAY POST OFFICE (74.3%),Peoples Services,LAC - Education,A44280
http://opendatacommunities.org/id/london-borough-council/sutton,London Borough of Sutton,29/05/2021,10002748,8.99, AMAZON.CO.UK 2T82205X4,SPLIT - THE JOLLY POSTMAN (25.7%),Peoples Services,LAC - Education,A44280
http://opendatacommunities.org/id/london-borough-council/sutton,London Borough of Sutton,28/05/2021,10002748,8.99, AMAZON.CO.UK 2T2AZ95K4,SPLIT - THE JOLLY POSTMAN (25.7%),Peoples Services,LAC - Education,A44280
http://opendatacommunities.org/id/london-borough-council/sutton,London Borough of Sutton,28/05/2021,10002748,21.66, AMAZON.CO.UK 2T2AZ95K4,SPLIT - LEARNING RESOURCES PRETEND AND PLAY POST OFFICE (74.3%),Peoples Services,LAC - Education,A44280
http://opendatacommunities.org/id/london-borough-council/sutton,London Borough of Sutton,28/05/2021,10002748,21.66, AMAZON.CO.UK 2T0CL9M84,SPLIT - LEARNING RESOURCES PRETEND AND PLAY POST OFFICE (74.3%),Peoples Services,LAC - Education,A44280
http://opendatacommunities.org/id/london-borough-council/sutton,London Borough of Sutton,28/05/2021,10002748,8.99, AMAZON.CO.UK 2T0CL9M84,SPLIT - THE JOLLY POSTMAN (25.7%),Peoples Services,LAC - Education,A44280
http://opendatacommunities.org/id/london-borough-council/sutton,London Borough of Sutton,28/05/2021,10002748,8.99, AMAZON.CO.UK 2T2AA0MI4,SPLIT - THE JOLLY POSTMAN (18.36%),Peoples Services,LAC - Education,A44280
http://opendatacommunities.org/id/london-borough-council/sutton,London Borough of Sutton,28/05/2021,10002748,4.99, AMAZON.CO.UK 2T2AA0MI4,SPLIT - POSTMAN BEAR: 20TH ANNIVERSARY EDITION (TALES FROM ACORN WOOD) (10.19%),Peoples Services,LAC - Education,A44280
http://opendatacommunities.org/id/london-borough-council/sutton,London Borough of Sutton,28/05/2021,10002748,21.66, AMAZON.CO.UK 2T2AA0MI4,SPLIT - LEARNING RESOURCES PRETEND AND PLAY POST OFFICE (53.08%),Peoples Services,LAC - Education,A44280
http://opendatacommunities.org/id/london-borough-council/sutton,London Borough of Sutton,28/05/2021,10002748,7.49, AMAZON.CO.UK 2T2AA0MI4,SPLIT - ORCHARD TOYS POST BOX GAME (18.37%),Peoples Services,LAC - Education,A44280
http://opendatacommunities.org/id/london-borough-council/sutton,London Borough of Sutton,27/05/2021,10002748,7.49, AMAZON.CO.UK 2T6LZ1GM4,SPLIT - ORCHARD TOYS POST BOX GAME (39.14%),Peoples Services,LAC - Education,A44280
http://opendatacommunities.org/id/london-borough-council/sutton,London Borough of Sutton,27/05/2021,10002748,8.99, AMAZON.CO.UK 2T6LZ1GM4,SPLIT - THE JOLLY POSTMAN (39.14%),Peoples Services,LAC - Education,A44280
http://opendatacommunities.org/id/london-borough-council/sutton,London Borough of Sutton,26/05/2021,10002748,5.1, AMAZON.CO.UK 2T7SY7EE4,SPLIT - POSTMAN BEAR: 20TH ANNIVERSARY EDITION (TALES FROM ACORN WOOD) (28.26%),Peoples Services,LAC - Education,A44280
http://opendatacommunities.org/id/london-borough-council/sutton,London Borough of Sutton,26/05/2021,10002748,3.67, AMAZON.CO.UK 2T7SY7EE4,BALANCING ENTRY AMOUNT (21.93%),Peoples Services,LAC - Education,A44280
http://opendatacommunities.org/id/london-borough-council/sutton,London Borough of Sutton,27/05/2021,10002748,4.99, AMAZON.CO.UK 2T6LZ1GM4,SPLIT - POSTMAN BEAR: 20TH ANNIVERSARY EDITION (TALES FROM ACORN WOOD) (21.72%),Peoples Services,LAC - Education,A44280
http://opendatacommunities.org/id/london-borough-council/sutton,London Borough of Sutton,27/05/2021,10002748,21.66, AMAZON.CO.UK 2T57B0GL4,SPLIT - LEARNING RESOURCES PRETEND AND PLAY POST OFFICE (100%),Peoples Services,LAC - Education,A44280
http://opendatacommunities.org/id/london-borough-council/sutton,London Borough of Sutton,26/05/2021,10002748,4.47, AMAZON.CO.UK 2T8SR1E44,SPLIT - POSTMAN BEAR: 20TH ANNIVERSARY EDITION (TALES FROM ACORN WOOD) (28.26%),Peoples Services,LAC - Education,A44280
http://opendatacommunities.org/id/london-borough-council/sutton,London Borough of Sutton,26/05/2021,10002748,9, AMAZON.CO.UK 2T8SR1E44,SPLIT - ORCHARD TOYS POST BOX GAME (49.82%),Peoples Services,LAC - Education,A44280
http://opendatacommunities.org/id/london-borough-council/sutton,London Borough of Sutton,26/05/2021,10002748,3.17, AMAZON.CO.UK 2T8SR1E44,BALANCING ENTRY AMOUNT (21.92%),Peoples Services,LAC - Education,A44280
http://opendatacommunities.org/id/london-borough-council/sutton,London Borough of Sutton,26/05/2021,10002748,7.87, AMAZON.CO.UK 2T0GA70C4,SPLIT - ORCHARD TOYS POST BOX GAME (49.82%),Peoples Services,LAC - Education,A44280
